bitfinex-derivatives/quotes_BNBF0:USTF0_20250617
["timestamp","ask_amount","ask_price","bid_price","bid_amount"]
[1750154694110,2.81429772,656.11,654.9,0.26549989]
[1750154694307,3.76042476,657.44,654.9,0.26549989]
[1750154694308,3.55970989,656.1,654.9,0.26549989]
[1750154694512,2.28223889,656.09,654.9,0.26549989]
[1750154694708,2.28224354,656.08,654.9,0.26549989]
[1750154694914,2.28224818,656.07,654.9,0.26549989]
[1750154695211,2.28225283,656.06,654.9,0.26549989]
[1750154695410,2.28223822,656.05,654.9,0.26549989]
[1750154695611,2.28224286,656.04,654.9,0.26549989]
[1750154695810,1.30064018,656.03,654.9,0.26549989]
[1750154696010,1.30064483,656.02,654.9,0.26549989]
[1750154696209,0.99577608,656.01,654.9,0.26549989]
[1750154696509,0.99577608,656.0,654.9,0.26549989]
[1750154696714,1.97738416,655.99,654.9,0.26549989]
[1750154696913,1.97738416,655.98,654.9,0.26549989]
[1750154697214,1.97738416,655.97,654.9,0.26549989]
[1750154697410,1.97738416,655.96,654.9,0.26549989]
[1750154697614,0.99577608,655.95,654.9,0.26549989]
[1750154697810,0.99577608,655.94,654.9,0.26549989]
[1750154698016,0.99577608,655.93,654.9,0.26549989]
[1750154698311,0.99577608,655.92,654.9,0.57089002]
[1750154698510,0.30486875,656.02,654.9,0.57089002]
[1750154698511,0.99577608,655.91,654.91,0.30538547]
[1750154698715,0.99577608,655.9,654.91,0.30538547]
[1750154698916,0.99577608,655.89,654.91,0.30538547]
[1750154699115,0.99577608,655.88,654.91,0.30538547]
[1750154699316,0.99577608,655.87,654.91,0.30538547]
[1750154699517,0.99577608,655.86,654.91,0.30538547]
[1750154699716,0.99577608,655.85,654.91,0.30538547]
[1750154699915,0.99577608,655.84,654.91,0.30538547]
[1750154700212,0.99577608,655.83,654.91,0.30538547]
[1750154700416,0.99577608,655.82,654.91,0.30538547]
[1750154700615,0.99577608,655.81,654.91,0.30538547]
[1750154700819,0.99577608,655.8,654.91,0.30538547]
[1750154701013,0.99577608,655.79,654.91,0.30538547]
[1750154701216,0.99577608,655.78,654.91,0.30538547]
[1750154701518,0.99577608,655.77,654.91,0.30538547]
[1750154701814,0.99577608,655.76,654.91,0.30538547]
[1750154702013,0.99577608,655.75,654.91,0.30538547]
[1750154702217,0.99577608,655.74,654.91,0.30538547]
[1750154702418,0.99577608,655.73,654.91,0.30538547]
[1750154702718,0.99577608,655.72,654.91,0.30538547]
[1750154702914,0.99577608,655.71,654.91,0.30538547]
[1750154703113,0.99577608,655.7,654.91,0.30538547]
[1750154703315,0.99577608,655.69,654.91,0.30538547]
[1750154703518,0.99577608,655.68,654.91,0.30538547]
[1750154703714,2.26011188,655.98,654.91,0.30538547]
[1750154703919,3.2572983,655.97,654.91,0.30538547]
[1750154704116,1.9791464,655.96,654.91,0.30538547]
[1750154704420,1.97919682,655.95,654.91,0.30538547]
[1750154704617,1.97919682,655.94,654.91,0.30538547]
[1750154704919,1.97919682,655.93,654.91,0.30538547]
[1750154705219,0.30486875,656.02,654.91,0.30538547]
[1750154705220,1.97919682,655.92,654.91,0.30538547]
[1750154705521,1.97919682,655.91,654.91,0.30538547]
[1750154705714,3.81223171,655.9,654.91,0.30538547]
[1750154705919,3.25692075,655.89,654.91,0.30538547]
[1750154706217,3.25692075,655.88,654.91,0.30538547]
[1750154706415,1.97919682,655.87,654.91,0.30538547]
[1750154706620,3.81242671,655.86,654.91,0.30538547]
[1750154706821,3.25705873,655.85,654.91,0.30538547]
[1750154707021,1.97919682,655.84,654.91,0.30538547]
[1750154707222,1.97905441,655.83,654.91,0.30538547]
[1750154707422,0.99718642,655.82,654.91,0.30538547]
[1750154707620,0.99718642,655.81,654.91,0.30538547]
[1750154707917,0.99718642,655.8,654.91,0.30538547]
[1750154708120,0.99718642,655.79,654.91,0.30538547]
[1750154708320,0.99718642,655.78,654.91,0.30538547]
[1750154708519,0.30486875,656.02,654.91,0.30538547]
[1750154708520,0.99718642,655.77,654.91,0.30538547]
[1750154708722,0.99718642,655.76,654.91,0.30538547]
[1750154708917,0.99718642,655.75,654.91,0.30538547]
[1750154709117,0.99718642,655.74,654.91,0.30538547]
[1750154709318,0.99718642,655.73,654.91,0.30538547]
[1750154709623,0.99906717,655.72,654.91,0.30538547]
[1750154709821,0.30486875,656.02,654.91,0.30538547]
[1750154710016,0.99932062,656.01,654.91,0.30538547]
[1750154710218,0.99932062,656.0,654.91,0.30538547]
[1750154710417,0.99932062,655.99,654.91,0.30538547]
[1750154710621,0.99932062,655.98,654.91,0.30538547]
[1750154710820,0.99932062,655.97,654.91,0.30538547]
[1750154711017,0.99932062,655.96,654.91,0.30538547]
[1750154711222,0.99932062,655.95,654.91,0.30538547]
[1750154711422,0.99932062,655.94,654.91,0.30538547]
[1750154711719,0.99932062,655.93,654.91,0.30538547]
[1750154711916,0.99932062,655.92,654.91,0.30538547]
[1750154712122,0.99932062,655.91,654.91,0.30538547]
[1750154712423,0.99932062,655.9,654.91,0.30538547]
[1750154712623,0.99932062,655.89,654.91,0.30538547]
[1750154712820,0.99932062,655.88,654.91,0.30538547]
[1750154713021,0.99932062,655.87,654.91,0.30538547]
[1750154713222,0.99932062,655.86,654.91,0.30538547]
[1750154713421,0.99932062,655.85,654.91,0.30538547]
[1750154713624,0.99932062,655.84,654.91,0.30538547]
[1750154713821,0.99932062,655.83,654.91,0.30538547]
[1750154714025,0.99932062,655.82,654.91,0.30538547]
[1750154714224,0.99932062,655.81,654.91,0.30538547]
[1750154714425,0.99932062,655.8,654.91,0.30538547]
[1750154714723,0.99932062,655.79,654.91,0.30538547]
[1750154714925,0.99932062,655.78,654.91,0.30538547]
[1750154715125,0.99932062,655.77,654.91,0.30538547]
[1750154715324,0.99932062,655.76,654.91,0.30538547]
[1750154715524,0.99932062,655.75,654.91,0.30538547]
[1750154717624,1.00272365,655.97,654.91,0.30538547]
[1750154717928,1.00272365,655.96,654.91,0.30538547]
[1750154718124,1.00272365,655.95,654.91,0.30538547]
[1750154718329,1.00272365,655.94,654.91,0.30538547]
[1750154718525,1.00272365,655.93,654.91,0.30538547]
[1750154718728,1.00272365,655.92,654.91,0.30538547]
[1750154718928,1.00272365,655.91,654.91,0.30538547]
[1750154719128,1.00272365,655.9,654.91,0.30538547]
[1750154719330,1.00272365,655.89,654.91,0.30538547]
[1750154719627,1.00272365,655.88,654.91,0.30538547]
[1750154719923,1.00272365,655.87,654.91,0.30538547]
[1750154720125,1.00272365,655.86,654.91,0.30538547]
[1750154720326,1.00272365,655.85,654.91,0.30538547]
[1750154720529,1.00272365,655.84,654.91,0.30538547]
[1750154720731,1.00272365,655.83,654.91,0.30538547]
[1750154720930,1.00272365,655.82,654.91,0.30538547]
[1750154721130,1.00272365,655.81,654.91,0.30538547]
[1750154721329,1.00272365,655.8,654.91,0.30538547]
[1750154721529,1.00272365,655.79,654.91,0.30538547]
[1750154721726,1.00272365,655.78,654.91,0.30538547]
[1750154722026,1.00272365,655.77,654.91,0.30538547]
[1750154722224,0.98722117,656.08,654.91,0.30538547]
[1750154722430,1.00123034,656.07,654.91,0.30538547]
[1750154722731,1.00123034,656.06,654.91,0.30538547]
[1750154722928,1.00123034,656.05,654.91,0.30538547]
[1750154723131,1.00123034,656.04,654.91,0.30538547]
[1750154723427,1.12812742,655.97,654.91,0.30538547]
[1750154723625,1.12812742,655.93,654.91,0.30538547]
[1750154723827,2.12935776,655.92,654.91,0.30538547]
[1750154724129,4.95844953,655.91,654.91,0.30538547]
[1750154724333,1.12812742,655.88,654.91,0.30538547]
[1750154724534,1.00123034,655.87,654.91,0.30538547]
[1750154724735,1.00123034,655.86,654.91,0.30538547]
[1750154724935,1.00123034,655.85,654.91,0.30538547]
[1750154725130,1.00123034,655.84,654.91,0.30538547]
[1750154725336,1.00123034,655.83,654.91,0.30538547]
[1750154725630,1.00123034,655.82,654.91,0.30538547]
[1750154725832,1.00123034,655.81,654.91,0.30538547]
[1750154726032,1.00123034,655.8,654.91,0.30538547]
[1750154726433,2.12935776,655.79,654.91,0.30538547]
[1750154726634,1.98921314,655.78,654.91,0.30538547]
[1750154726832,1.98921314,655.77,654.91,0.30538547]
[1750154727036,1.00123034,655.76,654.91,0.30538547]
[1750154727236,1.00123034,655.75,654.91,0.30538547]
[1750154727532,1.00123034,655.74,654.91,0.30538547]
[1750154727734,1.00123034,655.73,654.91,0.30538547]
[1750154727934,1.00123034,655.72,654.91,0.30538547]
[1750154728137,1.00123034,655.71,654.91,0.30538547]
[1750154728338,1.00123034,655.7,654.91,0.30538547]
[1750154728634,1.00123034,655.69,654.91,0.30538547]
[1750154728834,0.98794082,655.79,654.91,0.30538547]
[1750154728835,1.00123034,655.68,654.91,0.30538547]
[1750154729038,1.00123034,655.67,654.91,0.30538547]
[1750154729234,1.00123034,655.66,654.91,0.30538547]
[1750154729438,1.00123034,655.65,654.91,0.30538547]
[1750154729634,1.00123034,655.64,654.91,0.30538547]
[1750154729832,1.00123034,655.63,654.91,0.30538547]
[1750154730036,1.00123034,655.62,654.91,0.30538547]
[1750154730236,1.00123034,655.61,654.91,0.30538547]
[1750154730440,1.00123034,655.6,654.91,0.30538547]
[1750154730738,1.00123034,655.59,654.91,0.30538547]
[1750154730939,1.00123034,655.58,654.91,0.30538547]
[1750154731136,1.00123034,655.57,654.91,0.30538547]
[1750154731436,1.00123034,655.56,654.91,0.30538547]
[1750154731734,1.00123034,655.55,654.91,0.30538547]
[1750154731940,1.00123034,655.54,654.91,0.30538547]
[1750154732140,1.00123034,655.53,654.91,0.30538547]
[1750154732341,1.00123034,655.52,654.91,0.30538547]
[1750154732537,1.00123034,655.51,654.91,0.30538547]
[1750154732837,1.00123034,655.5,654.91,0.30538547]
[1750154733137,1.00123034,655.49,654.91,0.30538547]
[1750154733438,1.00123034,655.48,654.91,0.30538547]
[1750154733642,1.00123034,655.47,654.91,0.30538547]
[1750154733941,1.00123034,655.46,654.91,0.30538547]
[1750154734141,1.00123034,655.45,654.91,0.30538547]
[1750154734341,1.00123034,655.44,654.91,0.30538547]
[1750154734540,2.83336883,655.74,654.91,0.30538547]
[1750154734541,1.00123034,655.43,654.91,0.30538547]
[1750154734737,1.00123034,655.42,654.91,0.30538547]
[1750154734942,1.00123034,655.41,654.91,0.30538547]
[1750154735242,1.00123034,655.4,654.91,0.30538547]
[1750154735438,1.00123034,655.39,654.91,0.30538547]
[1750154735741,1.00123034,655.38,654.91,0.30538547]
[1750154736039,1.00123034,655.37,654.91,0.30538547]
[1750154736238,1.00123034,655.36,654.91,0.30538547]
[1750154736437,2.83229245,655.76,654.91,0.30538547]
[1750154736743,2.68860444,655.75,654.91,0.30538547]
[1750154736938,3.27462572,655.74,654.91,0.30538547]
[1750154737141,1.99035066,655.73,654.91,0.30538547]
[1750154737339,1.99035066,655.72,654.91,0.30538547]
[1750154737644,1.99035066,655.71,654.91,0.30538547]
[1750154737839,1.99035066,655.7,654.91,0.30538547]
[1750154738040,1.99035066,655.69,654.91,0.30538547]
[1750154738239,1.99035066,655.68,654.91,0.30538547]
[1750154738443,1.12812742,655.73,654.91,0.30538547]
[1750154738444,1.99061919,655.67,654.91,0.30538547]
[1750154738641,1.99061919,655.66,654.91,0.30538547]
[1750154738843,1.99108388,655.65,654.91,0.30538547]
[1750154739040,1.99108388,655.64,654.91,0.30538547]
[1750154739242,1.99049206,655.63,654.91,0.30538547]
[1750154739545,1.00166929,655.62,654.91,0.30538547]
[1750154739746,1.00166929,655.61,654.91,0.30538547]
[1750154739944,1.00166929,655.6,654.91,0.30538547]
[1750154740144,1.00166929,655.59,654.91,0.30538547]
[1750154740345,1.00166929,655.58,654.91,0.30538547]
[1750154740547,1.00166929,655.57,654.91,0.30538547]
[1750154740746,1.00166929,655.56,654.91,0.30538547]
[1750154741041,1.00166929,655.55,654.91,0.30538547]
[1750154741241,1.00166929,655.54,654.91,0.30538547]
[1750154741446,1.00166929,655.53,654.91,0.30538547]
[1750154741647,1.00166929,655.52,654.91,0.30538547]
[1750154741947,1.00166929,655.51,654.91,0.30538547]
[1750154742147,1.00166929,655.5,654.91,0.30538547]
[1750154742446,1.00166929,655.49,654.91,0.30538547]
[1750154742643,1.00166929,655.48,654.91,0.30538547]
[1750154742847,1.12890898,655.72,654.91,0.30538547]
[1750154742848,1.00166929,655.47,654.91,0.30538547]
[1750154743148,1.00166929,655.46,654.91,0.30538547]
[1750154743445,1.00166929,655.45,654.91,0.30538547]
[1750154743644,1.00166929,655.44,654.91,0.30538547]
[1750154743947,1.00166929,655.43,654.91,0.30538547]
[1750154744147,1.00166929,655.42,654.91,0.30538547]
[1750154744348,1.00166929,655.41,654.91,0.30538547]
[1750154744550,1.00166929,655.4,654.91,0.30538547]
[1750154744751,1.00166929,655.39,654.91,0.30538547]
[1750154744951,1.00166929,655.38,654.91,0.30538547]
[1750154745251,1.00166929,655.37,654.91,0.30538547]
[1750154745550,1.00166929,655.36,654.91,0.30538547]
[1750154745751,1.00166929,655.35,654.91,0.30538547]
[1750154745952,1.00166929,655.34,654.91,0.30538547]
[1750154746252,1.00166929,655.33,654.91,0.30538547]
[1750154746550,1.00166929,655.32,654.91,0.30538547]
[1750154746751,1.00166929,655.31,654.82,0.26554851]
[1750154746947,1.00166929,655.3,654.82,0.26554851]
[1750154747150,1.00166929,655.29,654.82,0.26554851]
[1750154747348,1.00166929,655.28,654.82,0.26554851]
[1750154747551,1.12890898,655.74,654.82,0.26554851]
[1750154747854,1.00004901,655.73,654.82,0.26554851]
[1750154748048,1.00004901,655.72,654.82,0.26554851]
[1750154748352,1.00004901,655.71,654.82,0.26554851]
[1750154748553,1.00004901,655.7,654.82,0.26554851]
[1750154748753,1.00004901,655.69,654.82,0.26554851]
[1750154749047,1.00004901,655.68,654.82,0.26554851]
[1750154749252,1.00004901,655.67,654.82,0.26554851]
[1750154749552,1.00004901,655.66,654.82,0.26554851]
[1750154749751,1.00004901,655.65,654.82,0.26554851]
[1750154749954,1.00004901,655.64,654.82,0.26554851]
[1750154750151,0.98735457,655.66,654.82,0.26554851]
[1750154750152,1.00004901,655.63,654.82,0.26554851]
[1750154750355,1.00004901,655.62,654.82,0.26554851]
[1750154750650,1.00004901,655.61,654.82,0.26554851]
[1750154750851,1.00004901,655.6,654.82,0.26554851]
[1750154751053,1.83938037,655.77,654.82,0.26554851]
[1750154751054,1.00004901,655.59,654.82,0.26554851]
[1750154751255,1.00004901,655.58,654.82,0.26554851]
[1750154751555,1.00004901,655.57,654.82,0.26554851]
[1750154751756,1.00004901,655.56,654.82,0.26554851]
[1750154752051,1.00004901,655.55,654.82,0.26554851]
[1750154752351,1.00004901,655.54,654.82,0.26554851]
[1750154752556,1.00004901,655.53,654.82,0.26554851]
[1750154752756,1.00004901,655.52,654.82,0.26554851]
[1750154753056,1.00004901,655.51,654.82,0.26554851]
[1750154753256,1.00004901,655.5,654.82,0.26554851]
[1750154753456,1.00004901,655.49,654.82,0.26554851]
[1750154753652,1.00004901,655.48,654.82,0.26554851]
[1750154753851,1.00004901,655.47,654.82,0.26554851]
[1750154754052,1.00004901,655.46,654.82,0.26554851]
[1750154754351,1.00004901,655.45,654.82,0.26554851]
[1750154754552,1.00004901,655.44,654.82,0.26554851]
[1750154754756,1.00004901,655.43,654.82,0.26554851]
[1750154754957,1.00004901,655.42,654.82,0.26554851]
[1750154755158,1.00004901,655.41,654.82,0.26554851]
[1750154755459,1.00004901,655.4,654.82,0.26554851]
[1750154755758,1.00004901,655.39,654.82,0.26554851]
[1750154755959,1.00004901,655.38,654.82,0.26554851]
[1750154756252,1.5041699,655.93,654.82,0.26554851]
[1750154756253,1.00004901,655.37,654.82,0.26554851]
[1750154756457,1.00004901,655.36,654.82,0.26554851]
[1750154756653,0.98566078,655.66,654.82,0.26554851]
[1750154756654,1.00004901,655.35,654.82,0.26554851]
[1750154756858,1.5041699,655.94,654.82,0.26554851]
[1750154756859,0.98549419,655.64,654.82,0.26554851]
[1750154757056,0.99591841,655.63,654.82,0.26554851]
[1750154757360,0.99591841,655.62,654.82,0.26554851]
[1750154757561,0.99591841,655.61,654.82,0.26554851]
[1750154757856,0.99591841,655.6,654.82,0.26554851]
[1750154758057,0.99591841,655.59,654.82,0.26554851]
[1750154758358,0.99591841,655.58,654.82,0.26554851]
[1750154758560,0.99591841,655.57,654.82,0.26554851]
[1750154758761,0.99591841,655.56,654.82,0.26554851]
[1750154759057,0.99591841,655.55,654.82,0.26554851]
[1750154759258,0.99591841,655.54,654.82,0.26554851]
[1750154759457,0.99591841,655.53,654.82,0.26554851]
[1750154759654,0.99591841,655.52,654.82,0.26554851]
[1750154759858,0.99591841,655.51,654.82,0.26554851]
[1750154760161,0.99591841,655.5,654.82,0.26554851]
[1750154760360,0.99591841,655.49,654.82,0.26554851]
[1750154760561,0.99591841,655.48,654.82,0.26554851]
[1750154760856,0.99591841,655.47,654.82,0.26554851]
[1750154761058,0.99591841,655.46,654.82,0.26554851]
[1750154761258,0.99591841,655.45,654.82,0.26554851]
[1750154761460,0.99591841,655.44,654.82,0.26554851]
[1750154761662,0.99591841,655.43,654.82,0.26554851]
[1750154761962,0.99591841,655.42,654.82,0.26554851]
[1750154762158,0.99591841,655.41,654.82,0.26554851]
[1750154762360,0.98569291,655.71,654.82,0.26554851]
[1750154762662,0.99617055,655.7,654.82,0.26554851]
[1750154762961,0.99617055,655.69,654.82,0.26554851]
[1750154763163,0.99617055,655.68,654.82,0.26554851]
[1750154763363,0.99617055,655.67,654.82,0.26554851]
[1750154763559,0.99617055,655.66,654.82,0.26554851]
[1750154763859,0.99617055,655.65,654.82,0.26554851]
[1750154764062,0.99617055,655.64,654.82,0.26554851]
[1750154764263,0.99617055,655.63,654.82,0.26554851]
[1750154764463,0.98566252,655.68,654.82,0.26554851]
[1750154764464,0.99617055,655.62,654.82,0.26554851]
[1750154764664,0.99617055,655.61,654.82,0.26554851]
[1750154764964,0.99617055,655.6,654.82,0.26554851]
[1750154765166,0.99617055,655.59,654.82,0.26554851]
[1750154765361,0.99617055,655.58,654.82,0.26554851]
[1750154765661,0.99617055,655.57,654.82,0.26554851]
[1750154765860,0.99617055,655.56,654.82,0.26554851]
[1750154766064,0.99617055,655.55,654.82,0.26554851]
[1750154766264,0.99617055,655.54,654.82,0.26554851]
[1750154766562,0.99617055,655.53,654.82,0.26554851]
[1750154766762,0.99617055,655.52,654.82,0.26554851]
[1750154766965,0.99617055,655.51,654.82,0.26554851]
[1750154767165,0.99617055,655.5,654.82,0.26554851]
[1750154767363,0.99617055,655.49,654.82,0.26554851]
[1750154767563,0.99617055,655.48,654.82,0.26554851]
[1750154767763,0.98621841,655.79,654.82,0.26554851]
[1750154767964,1.12890898,655.85,654.82,0.26554851]
[1750154767965,0.99687315,655.78,654.82,0.26554851]
[1750154768169,0.99687315,655.77,654.82,0.26554851]
[1750154768464,0.99687315,655.76,654.82,0.26554851]
[1750154768667,0.99687315,655.75,654.82,0.26554851]
[1750154768865,0.99687315,655.74,654.82,0.26554851]
[1750154769065,0.99687315,655.73,654.82,0.26554851]
[1750154769268,0.99687315,655.72,654.82,0.26554851]
[1750154769468,0.99687315,655.71,654.82,0.26554851]
[1750154769667,0.99687315,655.7,654.82,0.26554851]
[1750154769868,0.99687315,655.69,654.82,0.26554851]
[1750154770165,0.99687315,655.68,654.82,0.26554851]
[1750154770468,0.99687315,655.67,654.82,0.26554851]
[1750154770665,0.99687315,655.66,654.82,0.26554851]
[1750154770968,0.99687315,655.65,654.82,0.26554851]
[1750154771268,0.99687315,655.64,654.83,0.30542278]
[1750154771464,0.99687315,655.63,654.83,0.30542278]
[1750154771665,0.99687315,655.62,654.83,0.30542278]
[1750154771865,0.99687315,655.61,654.83,0.30542278]
[1750154772069,0.99687315,655.6,654.83,0.30542278]
[1750154772369,0.99687315,655.59,654.83,0.30542278]
[1750154772668,0.99687315,655.58,654.83,0.30542278]
[1750154772869,0.99687315,655.57,654.83,0.30542278]
[1750154773065,0.99687315,655.56,654.83,0.30542278]
[1750154773268,0.99687315,655.55,654.83,0.30542278]
[1750154773470,0.99687315,655.54,654.83,0.30542278]
[1750154773670,0.99687315,655.53,654.83,0.30542278]
[1750154773970,0.99687315,655.52,654.83,0.30542278]
[1750154774166,0.99687315,655.51,654.83,0.30542278]
[1750154774470,0.99687315,655.5,654.83,0.30542278]
[1750154774670,0.99687315,655.49,654.83,0.30542278]
[1750154774865,0.99687315,655.48,654.83,0.30542278]
[1750154775068,0.99687315,655.47,654.83,0.30542278]
[1750154775266,0.99687315,655.46,654.83,0.30542278]
[1750154775567,0.99687315,655.45,654.83,0.30542278]
[1750154775765,0.99687315,655.44,654.83,0.30542278]
[1750154775968,0.99687315,655.43,654.83,0.30542278]
[1750154776168,0.99687315,655.42,654.83,0.30542278]
[1750154776370,2.25625485,656.22,654.83,0.30542278]
[1750154776371,0.99687315,655.41,654.83,0.30542278]
[1750154776568,0.99687315,655.4,654.83,0.30542278]
[1750154776768,0.99687315,655.39,654.83,0.30542278]
[1750154776968,0.99687315,655.38,654.83,0.30542278]
[1750154777168,0.99687315,655.37,654.83,0.30542278]
[1750154777372,1.12890898,655.72,654.83,0.30542278]
[1750154777569,0.26554649,655.65,654.83,0.30542278]
[1750154777773,0.99859911,655.64,654.83,0.30542278]
[1750154777972,0.99859911,655.63,654.83,0.30542278]
[1750154778174,0.99859911,655.62,654.83,0.30542278]
[1750154778373,0.99859911,655.61,654.83,0.30542278]
[1750154778685,0.99859911,655.6,654.83,0.30542278]
[1750154778868,0.99859911,655.59,654.83,0.30542278]
[1750154779175,0.99859911,655.58,654.83,0.30542278]
[1750154779471,0.99859911,655.57,654.83,0.30542278]
[1750154779673,0.99859911,655.56,654.83,0.30542278]
[1750154779868,0.26547862,655.88,654.83,0.30542278]
[1750154780069,0.99962757,655.87,654.83,0.30542278]
[1750154780267,0.26547862,655.88,654.83,0.30542278]
[1750154780268,0.99962757,655.86,654.83,0.30542278]
[1750154780473,0.99962757,655.85,654.83,0.30542278]
[1750154780771,0.99962757,655.84,654.83,0.30542278]
[1750154780970,0.99962757,655.83,654.83,0.30542278]
[1750154781170,0.99962757,655.82,654.83,0.30542278]
[1750154781470,0.99962757,655.81,654.83,0.30542278]
[1750154781668,0.99962757,655.8,654.83,0.30542278]
[1750154781869,0.99962757,655.79,654.83,0.30542278]
[1750154782070,0.99962757,655.78,654.83,0.30542278]
[1750154782270,0.99962757,655.77,654.83,0.30542278]
[1750154782473,0.99962757,655.76,654.83,0.30542278]
[1750154782673,0.99962757,655.75,654.83,0.30542278]
[1750154782870,0.99962757,655.74,654.83,0.30542278]
[1750154783070,0.99962757,655.73,654.83,0.30542278]
[1750154783268,0.99962757,655.72,654.83,0.30542278]
[1750154783472,0.99962757,655.71,654.83,0.30542278]
[1750154783674,0.99962757,655.7,654.83,0.30542278]
[1750154783974,0.26543104,655.99,654.83,0.30542278]
[1750154784172,1.00163182,655.98,654.83,0.30542278]
[1750154784372,1.00163182,655.97,654.83,0.30542278]
[1750154784570,1.00163182,655.96,654.93,2.27127738]
[1750154784872,1.00163182,655.95,654.94,0.30537148]
[1750154785070,1.00163182,655.94,654.94,0.30537148]
[1750154785270,1.00163182,655.93,654.94,0.30537148]
[1750154785470,1.00163182,655.92,654.94,0.30537148]
[1750154785669,1.00163182,655.91,654.94,0.30537148]
[1750154785970,1.00163182,655.9,654.94,0.30537148]
[1750154786168,1.00163182,655.89,654.94,0.30537148]
[1750154786373,1.5041699,656.39,654.94,0.30537148]
[1750154786374,1.00163182,655.88,654.94,0.30537148]
[1750154786668,0.26538347,656.2,654.94,0.30537148]
[1750154786873,1.00109296,656.19,655.17,2.27127738]
[1750154787169,1.00109296,656.18,655.18,0.30525962]
[1750154787375,1.00109296,656.17,655.18,0.30525962]
[1750154787574,1.00109296,656.16,655.18,0.30525962]
[1750154787873,1.00109296,656.15,655.18,0.30525962]
[1750154788069,1.00109296,656.14,655.18,0.30525962]
[1750154788269,1.00109296,656.13,655.18,0.30525962]
[1750154788474,1.00109296,656.12,655.18,0.30525962]
[1750154788672,1.00109296,656.11,655.18,0.30525962]
[1750154788876,1.00109296,656.1,655.18,0.30525962]
[1750154789072,0.2653076,656.38,655.18,0.30525962]
[1750154789073,1.00109296,656.09,655.18,0.30525962]
[1750154789273,1.00109296,656.08,655.18,0.30525962]
[1750154789573,1.00109296,656.07,655.18,0.30525962]
[1750154789877,1.00109296,656.06,655.18,0.30525962]
[1750154790073,1.00109296,656.05,655.18,0.30525962]
[1750154790273,1.00109296,656.04,655.18,0.30525962]
[1750154790474,1.00109296,656.03,655.18,0.30525962]
[1750154790774,1.00109296,656.02,655.18,0.30525962]
[1750154790976,1.00109296,656.01,655.18,0.30525962]
[1750154791174,1.00109296,656.0,655.18,0.30525962]
[1750154791373,1.00109296,655.99,655.18,0.30525962]
[1750154791673,0.99542491,656.26,655.18,0.30525962]
[1750154791874,0.99741647,656.25,655.18,0.30525962]
[1750154792173,0.99741647,656.24,655.18,0.30525962]
[1750154792372,0.99741647,656.23,655.18,0.30525962]
[1750154792577,0.99741647,656.22,655.18,0.30525962]
[1750154792778,0.99741647,656.21,655.18,0.30525962]
[1750154792976,0.99741647,656.2,655.18,0.30525962]
[1750154793273,0.99741647,656.19,655.18,0.30525962]
[1750154793477,0.99741647,656.18,655.18,0.30525962]
[1750154793674,0.99741647,656.17,655.18,0.30525962]
[1750154793877,0.99741647,656.16,655.18,0.30525962]
[1750154794177,0.99741647,656.15,655.18,0.30525962]
[1750154794377,0.99741647,656.14,655.18,0.30525962]
[1750154794576,0.99741647,656.13,655.18,0.30525962]
[1750154794774,0.99741647,656.12,655.18,0.30525962]
[1750154794974,0.99741647,656.11,655.18,0.30525962]
[1750154795274,0.99741647,656.1,655.18,0.30525962]
[1750154795473,0.99741647,656.09,655.18,0.30525962]
[1750154795675,0.99741647,656.08,655.18,0.30525962]
[1750154795873,0.2653076,656.38,655.18,0.30525962]
[1750154795874,0.99741647,656.07,655.18,0.30525962]
[1750154796078,0.99741647,656.06,655.18,0.30525962]
[1750154796373,0.99741647,656.05,655.18,0.30525962]
[1750154796579,0.99741647,656.04,655.18,0.30525962]
[1750154796779,0.99741647,656.03,655.18,0.30525962]
[1750154797075,0.99741647,656.02,655.18,0.30525962]
[1750154797279,0.99741647,656.01,655.18,0.30525962]
[1750154797479,0.99741647,656.0,655.18,0.30525962]
[1750154797677,2.28184788,656.32,655.18,0.30525962]
[1750154797875,1.98914373,656.31,655.18,0.30525962]
[1750154798075,1.98914373,656.3,655.18,0.30525962]
[1750154798279,1.98914373,656.29,655.18,0.30525962]
[1750154798477,1.98914373,656.28,655.18,0.30525962]
[1750154798682,1.98914373,656.27,655.18,0.30525962]
[1750154798878,1.98914373,656.26,655.18,0.30525962]
[1750154799182,3.27636783,656.25,655.18,0.30525962]
[1750154799380,1.98914373,656.24,655.18,0.30525962]
[1750154799580,3.27541587,656.23,655.18,0.30525962]
[1750154799778,1.98824351,656.22,655.18,0.30525962]
[1750154800076,1.98824351,656.21,655.18,0.30525962]
[1750154800279,1.98824351,656.2,655.18,0.30525962]
[1750154800478,1.98824351,656.19,655.18,0.30525962]
[1750154800781,1.98824351,656.18,655.18,0.30525962]
[1750154800979,1.98824351,656.17,655.18,0.30525962]
[1750154801183,1.98824351,656.16,655.18,0.30525962]
[1750154801481,1.98824351,656.15,655.18,0.30525962]
[1750154801681,1.98824351,656.14,655.18,0.30525962]
[1750154801880,0.99563514,656.13,655.18,0.30525962]
[1750154802182,0.99563514,656.12,655.18,0.30525962]
[1750154802379,0.99563514,656.11,655.18,0.30525962]
[1750154802681,0.99563514,656.1,655.18,0.30525962]
[1750154802881,0.99563514,656.09,655.18,0.30525962]
[1750154803084,0.99563514,656.08,655.18,0.30525962]
[1750154803280,0.99563514,656.07,655.18,0.30525962]
[1750154803481,0.99563514,656.06,655.18,0.30525962]